[Event "DVM U20 2019"]
[Site "Braunschweig"]
[Date "2019.12.29"]
[Round "5"]
[White "Wendler, David"]
[Black "Melde, Benjamin"]
[Result "1-0"]
[ECO "B76"]
[WhiteElo "2204"]
[BlackElo "2120"]
[Annotator "NA"]
[PlyCount "91"]
[EventDate "2019.12.27"]
[EventType "team-tourn"]
[EventRounds "7"]
[EventCountry "GER"]
[SourceTitle "playchess.com"]
[Source "ChessBase"]
[SourceQuality "1"]
[WhiteTeam "SK Bebenhausen"]
[BlackTeam "SK Turm Kleve"]
[TimeControl "40/5400+30:1800+30"]

1. e4 {[%emt 0:00:00]} c5 {[%emt 0:00:00]} 2. Nf3 {[%emt 0:00:00]} d6 {[%emt 0:04:19]} 3. d4 {[%emt 0:00:23]} Nf6 {[%emt 0:00:06]} 4. Nc3 {[%emt 0:00:23]} cxd4 {[%emt 0:00:04]} 5. Nxd4 {[%emt 0:00:05] unterminated} g6 {[%emt 0:01:45]} 6. f3 {[%emt 0:03:08]} Bg7 {[%emt 0:00:11]} 7. Be3 {[%emt 0:00:26]} Nc6 {[%emt 0:00:10] unterminated} 8. Qd2 {[%emt 0:00:18]} O-O {[%emt 0:00:08]} 9. O-O-O {[%emt 0:00:13]} d5 {[%emt 0:03:26]} 10. exd5 {[%emt 0:01:58]} Nxd5 {[%emt 0:00:03]} 11. Nxc6 {[%emt 0:00:29]} bxc6 {[%emt 0:00:01]} 12. Bd4 {[%emt 0:00:18]} e5 {[%emt 0:17:46]} 13. Bc5 {[%emt 0:00:14]} Be6 {[%emt 0:00:06]} 14. Ne4 {[%emt 0:00:31] unterminated [#] unterminated} Nf4 $146 {[%emt 0:01:06] unterminated unterminated. B76: Sicilian Dragon: Yugoslav Attack, 9 g4 and 9 0-0-0} ({Predecessor:} 14... Rb8 15. Bc4 Re8 16. Bb3 a5 17. a4 Rxb3 18. cxb3 Qb8 19. Qc2 Nf4 20. Bd6 Qxb3 21. Qxb3 Bxb3 22. Nc5 Bxd1 23. Rxd1 Nd5 {1-0 (35) Ter Sahakyan,S (2586)-Grigoryan,K (2590) Yerevan 2015}) 15. Bxf8 {[%emt 0:17:32] unterminated} Qxf8 {[%emt 0:10:44]} 16. Qa5 {[%emt 0:00:50] unterminated} Bd5 {[%emt 0:19:41] unterminated} 17. c4 {[%emt 0:23:35] unterminated} Bxe4 {[%emt 0:03:10] unterminated} 18. fxe4 {[%emt 0:00:04] unterminated} Ne6 {[%emt 0:08:42] unterminated} 19. Bd3 {[%emt 0:01:41] unterminated} Rb8 {[%emt 0:07:29] unterminated} 20. Rhf1 {[%emt 0:08:41]} Bh6+ {[%emt 0:00:00] unterminated} 21. Kb1 {[%emt 0:00:45]} Be3 {[%emt 0:00:00] unterminated} 22. c5 {[%emt 0:07:32] unterminated} Qxc5 {[%emt 0:06:44]} 23. Qxc5 {[%emt 0:00:15]} Bxc5 {[%emt 0:00:01] unterminated} 24. Bc4 {[%emt 0:01:07]} Bd4 {[%emt 0:00:05] unterminated} 25. Bxe6 {[%emt 0:01:31]} fxe6 {[%emt 0:01:19]} 26. b3 {[%emt 0:00:25] unterminated} Kg7 {[%emt 0:02:50] unterminated} 27. Rc1 {[%emt 0:06:50]} c5 {[%emt 0:00:08]} 28. Rc4 {[%emt 0:00:25] unterminated} Rb6 $18 {[%emt 0:02:11]} 29. Rf3 {[%emt 0:04:21]} Rd6 {[%emt 0:00:05]} 30. Rc1 {[%emt 0:00:21]} Rd7 31. Rcf1 {[%emt 0:01:04]} Rb7 {[%emt 0:01:28]} 32. Kc2 {[%emt 0:01:17]} a5 {[%emt 0:00:10]} 33. Kd3 {[%emt 0:01:31]} a4 {[%emt 0:01:16]} 34. Rb1 {[%emt 0:01:43]} Rb4 {[%emt 0:07:16]} 35. Kc2 {[%emt 0:01:32]} a3 {[%emt 0:01:06]} 36. g4 {[%emt 0:06:44]} Bb2 37. g5 {[%emt 0:00:06]} h6 {[%emt 0:03:42]} 38. h4 {[%emt 0:00:06]} hxg5 {[%emt 0:00:40]} 39. hxg5 c4 40. Rbf1 {[%emt 0:03:08]} cxb3+ {[%emt 0:01:13]} 41. axb3 {[%emt 0:30:19]} Rb7 {[%emt 0:30:39]} 42. Kb1 {[%emt 0:03:14]} Rc7 {[%emt 0:00:00]} 43. Rh1 {[%emt 0:00:00]} Rc6 {[%emt 0:00:00]} 44. Rhf1 {[%emt 0:00:00]} Rc7 {[%emt 0:00:00]} 45. Ka2 {[%emt 0:00:00]} Rd7 {[%emt 0:00:00]} 46. b4 {[%emt 0:00:00] normal} 1-0

[Event "DVM U20 2019"]
[Site "Braunschweig"]
[Date "2019.12.29"]
[Round "5"]
[White "Knudsen, Simon"]
[Black "Joeres, Stefan"]
[Result "1/2-1/2"]
[ECO "A04"]
[WhiteElo "2194"]
[BlackElo "2201"]
[Annotator "ChessBase"]
[PlyCount "59"]
[EventDate "2019.12.27"]
[EventType "team-tourn"]
[EventRounds "7"]
[EventCountry "GER"]
[SourceTitle "playchess.com"]
[Source "ChessBase"]
[SourceQuality "1"]
[WhiteTeam "SF Brackel"]
[BlackTeam "Karlsruher SF"]
[TimeControl "40/5400+30:1800+30"]

1. Nf3 {[%emt 0:00:00]} c5 {[%emt 0:00:00]} 2. g3 {[%emt 0:00:00]} Nc6 {[%emt 0:00:13]} 3. Bg2 {[%emt 0:00:00]} g6 {[%emt 0:00:26]} 4. d4 {[%emt 0:01:08]} cxd4 {[%emt 0:02:28]} 5. Nxd4 {[%emt 0:00:09]} Bg7 {[%emt 0:00:18]} 6. Nb3 {[%emt 0:02:03]} Nf6 {[%emt 0:00:45]} 7. O-O {[%emt 0:03:19]} O-O {[%emt 0:03:45]} 8. Nc3 {[%emt 0:01:03]} d6 {[%emt 0:03:12]} 9. a4 {[%emt 0:00:31]} Be6 {[%emt 0:00:50]} 10. Nd5 {[%emt 0:01:24]} Nxd5 {[%emt 0:07:28]} 11. Bxd5 {[%emt 0:00:04]} Bxd5 {[%emt 0:00:15]} 12. Qxd5 {[%emt 0:00:03]} Qc7 {[%emt 0:00:07]} 13. c3 {[%emt 0:01:14]} e6 {[%emt 0:01:42]} 14. Qd1 {[%emt 0:00:42]} Rfd8 {[%emt 0:08:38]} 15. a5 {[%emt 0:01:32]} d5 {[%emt 0:06:22]} 16. Bg5 {[%emt 0:00:34]} Rd6 {[%emt 0:03:47]} 17. Qc2 {[%emt 0:02:14]} Rc8 {[%emt 0:09:30]} 18. e4 {[%emt 0:01:06]} h6 {[%emt 0:03:18]} 19. Be3 {[%emt 0:02:02]} d4 {[%emt 0:01:15]} 20. cxd4 {[%emt 0:00:27]} Nxd4 {[%emt 0:00:25]} 21. Nxd4 {[%emt 0:00:21]} Bxd4 {[%emt 0:00:55]} 22. Qxc7 {[%emt 0:00:10]} Rxc7 {[%emt 0:00:01]} 23. Bxh6 {[%emt 0:09:59]} Bxb2 {[%emt 0:01:47]} 24. Rad1 {[%emt 0:00:25]} Rdd7 {[%emt 0:03:02]} 25. Be3 {[%emt 0:00:43]} Bc3 {[%emt 0:02:57]} 26. Bxa7 {[%emt 0:04:26]} Rxd1 {[%emt 0:02:32]} 27. Bb6 {[%emt 0:01:27]} Rc6 {[%emt 0:00:04]} 28. Rxd1 {normal} Be5 {[%emt 0:00:28]} 29. Rb1 {normal} Rc2 {[%emt 0:00:50]} 30. Kg2 {normal} 1/2-1/2

[Event "DVM U20 2019"]
[Site "Braunschweig"]
[Date "2019.12.29"]
[Round "5"]
[White "Thomsen, Phil"]
[Black "Lutz, Ruben"]
[Result "0-1"]
[ECO "C11"]
[WhiteElo "2147"]
[BlackElo "2132"]
[Annotator "ChessBase"]
[PlyCount "65"]
[EventDate "2019.12.27"]
[EventType "team-tourn"]
[EventRounds "7"]
[EventCountry "GER"]
[SourceTitle "playchess.com"]
[Source "ChessBase"]
[SourceQuality "1"]
[WhiteTeam "Sges Bensheim"]
[BlackTeam "USV TU Dresden"]
[TimeControl "40/5400+30:1800+30"]

1. e4 {[%emt 0:00:00]} e6 {[%emt 0:00:00]} 2. d4 {[%emt 0:00:00]} d5 {[%emt 0:00:00]} 3. Nc3 {[%emt 0:00:18]} Nf6 {[%emt 0:00:00]} 4. e5 {[%emt 0:00:12]} Nfd7 {[%emt 0:00:04]} 5. f4 {[%emt 0:00:05]} c5 {[%emt 0:00:11]} 6. Nf3 {[%emt 0:00:05]} Nc6 {[%emt 0:00:13]} 7. Be3 {[%emt 0:00:03]} Be7 {[%emt 0:00:16]} 8. Qd2 {[%emt 0:00:45]} O-O {[%emt 0:00:21]} 9. Be2 {[%emt 0:00:54]} a6 {[%emt 0:05:51]} 10. O-O {[%emt 0:00:10]} b5 {[%emt 0:03:13]} 11. a3 {[%emt 0:05:00]} Qc7 {[%emt 0:05:47]} 12. Nd1 {[%emt 0:04:27]} Na5 {[%emt 0:08:32]} 13. b3 {[%emt 0:05:38]} Bb7 {[%emt 0:02:24]} 14. Nf2 {[%emt 0:02:09]} Rac8 {[%emt 0:08:18]} 15. dxc5 {[%emt 0:08:18]} Bxc5 {[%emt 0:00:32]} 16. Bxc5 {[%emt 0:04:54]} Nxc5 {[%emt 0:00:05]} 17. Nd4 {[%emt 0:08:15]} Nc6 {[%emt 0:01:57]} 18. Rfd1 {[%emt 0:06:02]} Rfd8 {[%emt 0:01:52]} 19. Qe3 {[%emt 0:04:59]} Qb6 {[%emt 0:06:54]} 20. Nxc6 {[%emt 0:14:30]} Qxc6 {[%emt 0:02:41]} 21. Qd4 {[%emt 0:10:15]} Qc7 {[%emt 0:03:25]} 22. Rac1 {[%emt 0:02:57]} h6 {[%emt 0:22:32]} 23. Kf1 {[%emt 0:05:54]} Ne4 {[%emt 0:08:17]} 24. Nxe4 {[%emt 0:03:52]} dxe4 {[%emt 0:00:05]} 25. Qe3 {[%emt 0:00:14]} Rxd1+ {[%emt 0:00:44]} 26. Bxd1 {[%emt 0:00:08]} Qa5 {[%emt 0:00:39]} 27. b4 {[%emt 0:00:43]} Qc7 {[%emt 0:00:53]} 28. c3 {[%emt 0:01:06]} Qc4+ {[%emt 0:06:29]} 29. Qe2 {[%emt 0:00:18]} Qd5 {[%emt 0:02:11]} 30. Ke1 {[%emt 0:03:12]} e3 {[%emt 0:03:34]} 31. a4 {[%emt 0:01:32]} Rd8 {[%emt 0:03:17]} 32. Rc2 {[%emt 0:02:22]} bxa4 {[%emt 0:00:14]} 33. Ra2 {[%emt 0:01:33] normal} 0-1

[Event "DVM U20 2019"]
[Site "Braunschweig"]
[Date "2019.12.29"]
[Round "5"]
[White "Hoffmann, Jens"]
[Black "Doll, Alexander"]
[Result "1/2-1/2"]
[ECO "C44"]
[WhiteElo "2113"]
[BlackElo "2127"]
[Annotator "ChessBase"]
[PlyCount "44"]
[EventDate "2019.12.27"]
[EventType "team-tourn"]
[EventRounds "7"]
[EventCountry "GER"]
[SourceTitle "playchess.com"]
[Source "ChessBase"]
[SourceQuality "1"]
[WhiteTeam "SF HN-Biberach"]
[BlackTeam "OSG Baden-Baden"]
[TimeControl "40/5400+30:1800+30"]

1. e4 {[%emt 0:00:00]} e5 {[%emt 0:00:00]} 2. Nf3 {[%emt 0:00:00]} Nc6 {[%emt 0:00:00]} 3. d4 {[%emt 0:00:00]} exd4 {[%emt 0:00:01]} 4. Nxd4 {[%emt 0:00:00]} Nf6 {[%emt 0:00:23]} 5. Nc3 {[%emt 0:00:00]} Bb4 {[%emt 0:00:05]} 6. Nxc6 {[%emt 0:00:04]} bxc6 {[%emt 0:00:06]} 7. Bd3 {[%emt 0:00:04]} d5 {[%emt 0:00:06]} 8. exd5 {[%emt 0:00:05]} O-O {[%emt 0:00:05]} 9. O-O {[%emt 0:00:10]} cxd5 {[%emt 0:00:04]} 10. Bg5 {[%emt 0:00:09]} c6 {[%emt 0:00:05]} 11. Qf3 {[%emt 0:01:06]} Bd6 {[%emt 0:00:06]} 12. Ne2 {[%emt 0:07:02]} Bg4 {[%emt 0:00:40]} 13. Bxf6 {[%emt 0:00:52]} Bxf3 {[%emt 0:00:02]} 14. Bxd8 {[%emt 0:00:09]} Bxe2 {[%emt 0:00:02]} 15. Bxe2 {[%emt 0:00:26]} Rfxd8 {[%emt 0:00:24]} 16. Bf3 {[%emt 0:13:23]} Be5 {[%emt 0:01:50]} 17. Rab1 {[%emt 0:01:42]} Rab8 {[%emt 0:01:02]} 18. b3 {[%emt 0:01:31]} c5 {[%emt 0:02:42]} 19. Rbd1 {[%emt 0:02:06]} d4 {[%emt 0:02:01]} 20. Rfe1 {[%emt 0:01:13]} Bf6 {[%emt 0:00:21]} 21. Bc6 {[%emt 0:04:00]} Rb6 {[%emt 0:02:31]} 22. Ba4 {[%emt 0:03:53]} h5 {[%emt 0:01:46] normal} 1/2-1/2

[Event "DVM U20 2019"]
[Site "Braunschweig"]
[Date "2019.12.29"]
[Round "5"]
[White "Meiwes, Thore"]
[Black "Weller, Uli"]
[Result "0-1"]
[ECO "A45"]
[WhiteElo "2106"]
[BlackElo "2070"]
[Annotator "ChessBase"]
[PlyCount "41"]
[EventDate "2019.12.27"]
[EventType "team-tourn"]
[EventRounds "7"]
[EventCountry "GER"]
[SourceTitle "playchess.com"]
[Source "ChessBase"]
[SourceQuality "1"]
[WhiteTeam "SK Lehrte 1919"]
[BlackTeam "SF Augsburg"]
[TimeControl "40/5400+30:1800+30"]

1. d4 {[%emt 0:00:00]} Nf6 {[%emt 0:00:10]} 2. Bf4 {[%emt 0:00:00]} e6 {[%emt 0:03:38]} 3. e3 {[%emt 0:00:00]} Be7 {[%emt 0:02:46]} 4. Nd2 {[%emt 0:00:05]} b6 {[%emt 0:00:54]} 5. h3 {[%emt 0:00:18]} O-O {[%emt 0:01:06]} 6. Ngf3 {[%emt 0:00:05]} d6 {[%emt 0:01:57]} 7. Bd3 {[%emt 0:00:21]} c5 {[%emt 0:01:17]} 8. O-O {[%emt 0:00:36]} Ba6 {[%emt 0:09:46]} 9. c4 {[%emt 0:01:19]} Nc6 {[%emt 0:02:44]} 10. Qa4 {[%emt 0:16:57]} Bb7 {[%emt 0:01:20]} 11. Bg5 {[%emt 0:02:51]} h6 {[%emt 0:04:32]} 12. Bh4 {[%emt 0:00:40]} cxd4 {[%emt 0:07:18]} 13. exd4 {[%emt 0:00:46]} d5 {[%emt 0:16:51]} 14. Rad1 {[%emt 0:04:51]} dxc4 {[%emt 0:11:36]} 15. Nxc4 {[%emt 0:01:49]} Nh5 {[%emt 0:01:36]} 16. Bxe7 {[%emt 0:00:48]} Nxe7 {[%emt 0:00:13]} 17. Nce5 {[%emt 0:02:39]} Nf4 {[%emt 0:01:24]} 18. Bb1 {[%emt 0:01:35]} f6 {[%emt 0:02:19]} 19. Ng4 {[%emt 0:22:12]} Bxf3 {[%emt 0:01:46]} 20. gxf3 {[%emt 0:00:17]} Qd5 {[%emt 0:00:46] normal} 21. Ne5 {[%emt 0:07:41] normal} 0-1

[Event "DVM U20 2019"]
[Site "Braunschweig"]
[Date "2019.12.29"]
[Round "5"]
[White "Roehr, Tobias"]
[Black "Dechant, Georg"]
[Result "1-0"]
[ECO "A61"]
[WhiteElo "2103"]
[BlackElo "2065"]
[Annotator "ChessBase"]
[PlyCount "56"]
[EventDate "2019.12.27"]
[EventType "team-tourn"]
[EventRounds "7"]
[EventCountry "GER"]
[SourceTitle "playchess.com"]
[Source "ChessBase"]
[SourceQuality "1"]
[WhiteTeam "SG Aufbau Elbe Magdeburg"]
[BlackTeam "SC Bavaria Regensburg"]
[TimeControl "40/5400+30:1800+30"]

1. d4 {[%emt 0:00:00]} Nf6 {[%emt 0:00:00]} 2. c4 {[%emt 0:00:00]} c5 {[%emt 0:00:00]} 3. d5 {[%emt 0:00:00]} e6 {[%emt 0:00:00]} 4. Nc3 {[%emt 0:00:00]} exd5 {[%emt 0:00:00]} 5. cxd5 {[%emt 0:00:05]} d6 {[%emt 0:00:00]} 6. Nf3 {[%emt 0:00:08]} g6 {[%emt 0:00:04]} 7. Bf4 {[%emt 0:00:23]} Bg7 {[%emt 0:00:25]} 8. h3 {[%emt 0:00:23]} O-O {[%emt 0:01:00]} 9. e3 {[%emt 0:03:35]} a6 {[%emt 0:03:07]} 10. a4 {[%emt 0:00:10]} Nh5 {[%emt 0:03:10]} 11. Bh2 {[%emt 0:03:21]} f5 {[%emt 0:01:35]} 12. Nd2 {[%emt 0:08:00]} Qe7 {[%emt 0:23:01]} 13. Be2 {[%emt 0:03:35]} f4 {[%emt 0:14:50]} 14. e4 {[%emt 0:02:20]} Nf6 {[%emt 0:00:59]} 15. Qc2 {[%emt 0:06:14]} Nfd7 {[%emt 0:04:37]} 16. g3 {[%emt 0:11:20]} Bh6 {[%emt 0:03:25]} 17. gxf4 {[%emt 0:12:44]} Bxf4 {[%emt 0:00:08]} 18. Bxf4 {[%emt 0:00:07]} Rxf4 {[%emt 0:00:03]} 19. Nc4 {[%emt 0:02:33]} Qh4 {[%emt 0:11:00]} 20. Nxd6 {[%emt 0:11:33]} Rxf2 {[%emt 0:07:36]} 21. Kd1 {[%emt 0:01:23]} Ne5 {[%emt 0:07:35]} 22. Nxc8 {[%emt 0:03:21]} Nbd7 {[%emt 0:06:56]} 23. Nd6 {[%emt 0:02:25]} Qe7 {[%emt 0:00:12]} 24. Nc4 {[%emt 0:03:58]} Nxc4 {[%emt 0:02:38]} 25. Bxc4 {[%emt 0:00:06]} Qf7 {[%emt 0:00:05]} 26. d6 {[%emt 0:02:48]} Qxc4 {[%emt 0:00:22]} 27. Qxf2 {[%emt 0:00:13]} Ne5 {[%emt 0:00:18]} 28. Qd2 {[%emt 0:02:11]} Nd3 {[%emt 0:00:05] normal} 1-0

[Event "DVM U20 2019"]
[Site "Braunschweig"]
[Date "2019.12.29"]
[Round "5"]
[White "Koll, Lukas"]
[Black "Kartsev, Nikolay"]
[Result "1/2-1/2"]
[ECO "A22"]
[WhiteElo "2093"]
[BlackElo "2092"]
[Annotator "NA"]
[PlyCount "64"]
[EventDate "2019.12.27"]
[EventType "team-tourn"]
[EventRounds "7"]
[EventCountry "GER"]
[SourceTitle "playchess.com"]
[Source "ChessBase"]
[SourceQuality "1"]
[WhiteTeam "Karlsruher SF"]
[BlackTeam "SF Brackel"]
[TimeControl "40/5400+30:1800+30"]

1. c4 {[%emt 0:00:00]} e5 {[%emt 0:00:49]} 2. Nc3 {[%emt 0:00:54]} Nf6 {[%emt 0:00:13]} 3. g3 {[%emt 0:01:42]} Bb4 {[%emt 0:00:50]} 4. Bg2 {[%emt 0:04:30]} O-O {[%emt 0:01:06]} 5. Nd5 {[%emt 0:03:43]} Bc5 {[%emt 0:06:18]} 6. e3 {[%emt 0:01:56]} c6 {[%emt 0:00:41]} 7. Nxf6+ {[%emt 0:00:18]} Qxf6 {[%emt 0:00:06]} 8. Ne2 {[%emt 0:00:20]} Re8 {[%emt 0:06:35]} 9. O-O {[%emt 0:00:29]} Bf8 {[%emt 0:11:59]} 10. Qc2 {[%emt 0:04:28]} d6 {[%emt 0:03:20]} 11. b3 {[%emt 0:10:04]} Qg6 {[%emt 0:07:31]} 12. e4 {[%emt 0:04:21]} d5 {[%emt 0:02:36]} 13. d3 {[%emt 0:00:48]} dxe4 {[%emt 0:01:37]} 14. dxe4 {[%emt 0:00:11]} Na6 {[%emt 0:01:38]} 15. Be3 {[%emt 0:04:06]} Bc5 {[%emt 0:15:14]} 16. Bxc5 {[%emt 0:03:47]} Nxc5 {[%emt 0:00:02]} 17. Rad1 {[%emt 0:03:03]} Bg4 {[%emt 0:12:03]} 18. f3 {[%emt 0:02:11]} Be6 {[%emt 0:01:24]} 19. b4 {[%emt 0:01:20]} Na6 {[%emt 0:00:12]} 20. a3 {[%emt 0:00:24]} Qh6 {[%emt 0:02:28]} 21. f4 {[%emt 0:09:14]} Bg4 {[%emt 0:00:19]} 22. Bf3 {[%emt 0:04:34]} Bxf3 {[%emt 0:00:01]} 23. Rxf3 {[%emt 0:00:08]} exf4 {[%emt 0:02:33]} 24. Nxf4 {[%emt 0:02:51]} Qf6 {[%emt 0:06:38]} 25. Qe2 {[%emt 0:03:13]} Rad8 {[%emt 0:02:52]} 26. Rfd3 {[%emt 0:02:42]} Rxd3 {[%emt 0:01:26]} 27. Qxd3 {[%emt 0:00:18]} Qe5 {[%emt 0:01:41]} 28. Qd4 {[%emt 0:01:07]} Qxd4+ {[%emt 0:05:09]} 29. Rxd4 {[%emt 0:02:27]} c5 {[%emt 0:00:05]} 30. Rd7 {[%emt 0:00:15]} cxb4 {[%emt 0:00:13]} 31. axb4 {[%emt 0:01:25]} Nxb4 {[%emt 0:01:34]} 32. Rxb7 {[%emt 0:00:08]} a5 {[%emt 0:00:12] normal} 1/2-1/2

[Event "DVM U20 2019"]
[Site "Braunschweig"]
[Date "2019.12.29"]
[Round "5"]
[White "Richter, Philipp"]
[Black "Keller, Yannik"]
[Result "1-0"]
[ECO "B06"]
[WhiteElo "2084"]
[BlackElo "2020"]
[Annotator "NA"]
[PlyCount "33"]
[EventDate "2019.12.27"]
[EventType "team-tourn"]
[EventRounds "7"]
[EventCountry "GER"]
[SourceTitle "playchess.com"]
[Source "ChessBase"]
[SourceQuality "1"]
[WhiteTeam "USV TU Dresden"]
[BlackTeam "Sges Bensheim"]
[TimeControl "40/5400+30:1800+30"]

1. d4 {[%emt 0:00:00]} g6 {[%emt 0:00:00]} 2. e4 {[%emt 0:00:00]} Bg7 {[%emt 0:00:00]} 3. Nf3 {[%emt 0:00:00]} d6 {[%emt 0:02:31]} 4. Bc4 {[%emt 0:00:00]} Nf6 {[%emt 0:01:47]} 5. Qe2 {[%emt 0:00:10]} e5 {[%emt 0:11:30]} 6. dxe5 {[%emt 0:07:02]} dxe5 {[%emt 0:00:02]} 7. Nxe5 {[%emt 0:01:00]} O-O {[%emt 0:00:03]} 8. Nc3 {[%emt 0:04:30]} Qe7 {[%emt 0:11:52]} 9. f4 {[%emt 0:06:52]} c6 {[%emt 0:03:25]} 10. a4 {[%emt 0:03:16]} Be6 {[%emt 0:05:34]} 11. Bxe6 {[%emt 0:08:12]} Qxe6 {[%emt 0:00:04]} 12. O-O {[%emt 0:02:49]} Re8 {[%emt 0:02:03]} 13. Re1 {[%emt 0:06:21]} Na6 {[%emt 0:03:32]} 14. Nf3 {[%emt 0:02:25]} Nc5 {[%emt 0:04:51]} 15. Ng5 {[%emt 0:03:36]} Qd7 {[%emt 0:07:40]} 16. Qc4 {[%emt 0:01:24]} Nfxe4 {[%emt 0:18:38]} 17. Ngxe4 {[%emt 0:13:20] normal} 1-0

[Event "DVM U20 2019"]
[Site "Braunschweig"]
[Date "2019.12.29"]
[Round "5"]
[White "Wu, Luka"]
[Black "Geltz, Noah"]
[Result "0-1"]
[ECO "C67"]
[WhiteElo "2073"]
[BlackElo "2054"]
[Annotator "NA"]
[PlyCount "120"]
[EventDate "2019.12.27"]
[EventType "team-tourn"]
[EventRounds "7"]
[EventCountry "GER"]
[SourceTitle "playchess.com"]
[Source "ChessBase"]
[SourceQuality "1"]
[WhiteTeam "OSG Baden-Baden"]
[BlackTeam "SF HN-Biberach"]
[TimeControl "40/5400+30:1800+30"]

1. e4 {[%emt 0:00:00]} e5 {[%emt 0:00:00]} 2. Nf3 {[%emt 0:00:00]} Nc6 {[%emt 0:00:00]} 3. Bb5 {[%emt 0:00:00]} Nf6 {[%emt 0:00:00]} 4. O-O {[%emt 0:12:34]} Nxe4 {[%emt 0:00:57]} 5. Re1 {[%emt 0:00:20]} Nd6 {[%emt 0:01:09]} 6. Nxe5 {[%emt 0:02:17]} Nxe5 {[%emt 0:00:11]} 7. Rxe5+ {[%emt 0:00:07]} Be7 {[%emt 0:00:12]} 8. Bf1 {[%emt 0:01:26]} O-O {[%emt 0:00:32]} 9. d4 {[%emt 0:00:11]} Bf6 {[%emt 0:00:38]} 10. Re1 {[%emt 0:00:24]} Re8 {[%emt 0:00:25]} 11. c3 {[%emt 0:00:19]} Rxe1 {[%emt 0:03:26]} 12. Qxe1 {[%emt 0:00:09]} Nf5 {[%emt 0:08:30]} 13. Bf4 {[%emt 0:02:18]} d6 {[%emt 0:03:41]} 14. Na3 {[%emt 0:00:24]} Bd7 {[%emt 0:02:57]} 15. Bd3 {[%emt 0:02:39]} Qe7 {[%emt 0:04:13]} 16. Qd1 {[%emt 0:02:51]} g6 {[%emt 0:08:38]} 17. Qb3 {[%emt 0:02:20]} b6 {[%emt 0:04:33]} 18. Kf1 {[%emt 0:00:59]} Bg5 {[%emt 0:12:03]} 19. Re1 {[%emt 0:14:14]} Qf6 {[%emt 0:00:21]} 20. Qd5 {[%emt 0:00:59]} c6 {[%emt 0:06:40]} 21. Qf3 {[%emt 0:02:34]} Nxd4 {[%emt 0:10:11]} 22. Bxg5 {[%emt 0:00:31]} Qxf3 {[%emt 0:00:12]} 23. gxf3 {[%emt 0:00:09]} Bh3+ {[%emt 0:00:05]} 24. Kg1 {[%emt 0:01:18]} Nxf3+ {[%emt 0:00:07]} 25. Kh1 {[%emt 0:00:05]} Bg2+ {[%emt 0:00:08]} 26. Kxg2 {[%emt 0:00:06]} Nxe1+ {[%emt 0:00:05]} 27. Kf1 {[%emt 0:00:31]} Nxd3 {[%emt 0:00:08]} 28. b3 {[%emt 0:00:06]} Re8 {[%emt 0:00:13]} 29. Nc2 {[%emt 0:00:12]} Re5 {[%emt 0:02:19]} 30. Be3 {[%emt 0:00:29]} c5 {[%emt 0:00:46]} 31. Na3 {[%emt 0:00:38]} d5 {[%emt 0:02:04]} 32. Nb5 {[%emt 0:01:01]} Re7 {[%emt 0:00:29]} 33. Kg2 Rd7 {[%emt 0:01:57]} 34. Kf3 {[%emt 0:01:44]} a6 {[%emt 0:00:31]} 35. Na3 {[%emt 0:00:05]} f5 {[%emt 0:01:13]} 36. Ke2 {[%emt 0:00:29]} Ne5 {[%emt 0:00:28]} 37. Nc2 {[%emt 0:00:17]} Re7 {[%emt 0:01:29]} 38. f3 {[%emt 0:00:44]} Kg7 {[%emt 0:01:09]} 39. h3 {[%emt 0:01:05]} h6 {[%emt 0:00:26]} 40. f4 {[%emt 0:00:11]} Nc6 {[%emt 0:00:34]} 41. Kf3 {[%emt 0:30:08]} Re4 {[%emt 0:30:27]} 42. Bd2 {[%emt 0:00:59]} d4 {[%emt 0:00:24]} 43. cxd4 {[%emt 0:00:11]} Nxd4+ {[%emt 0:00:06]} 44. Nxd4 {[%emt 0:00:06]} cxd4 {[%emt 0:00:04]} 45. a4 {[%emt 0:00:08]} Kf7 {[%emt 0:00:09]} 46. Kf2 {[%emt 0:00:53]} Ke6 {[%emt 0:00:25]} 47. Kf3 {[%emt 0:00:10]} Kd5 {[%emt 0:00:11]} 48. Kf2 {[%emt 0:00:05]} d3 {[%emt 0:00:10]} 49. Kf3 {[%emt 0:00:50]} g5 {[%emt 0:00:08]} 50. fxg5 {[%emt 0:00:07]} hxg5 {[%emt 0:00:08]} 51. Bc3 {[%emt 0:00:36]} g4+ {[%emt 0:00:11]} 52. hxg4 {[%emt 0:00:16]} fxg4+ {[%emt 0:00:06]} 53. Kg3 {[%emt 0:00:05]} Re2 {[%emt 0:00:09]} 54. Kxg4 {[%emt 0:00:05]} d2 {[%emt 0:00:06]} 55. Bxd2 {[%emt 0:00:04]} Rxd2 {[%emt 0:00:02]} 56. Kf3 {[%emt 0:00:06]} Rd3+ {[%emt 0:00:38]} 57. Ke2 {[%emt 0:00:05]} Ke4 {[%emt 0:00:08]} 58. b4 {[%emt 0:00:04]} a5 {[%emt 0:00:05]} 59. b5 {[%emt 0:00:11] normal} Kd4 {[%emt 0:00:10]} 60. Kf2 {[%emt 0:00:10]} Re3 {[%emt 0:00:09] normal} 0-1